[Event "Titled Tuesday Blitz June 27 Late 2023"]
[White "Fajdetic, Hrvoje"]
[Black "Veiga, Jose Francisco R P Neves"]
[WhiteFideId "14501945"]
[BlackFideId "1930087"]
[WhiteElo "2340"]
[BlackElo "2657"]
[Result "0-1"]
[Round "7"]
[TimeControl "180+2"]
[Date "2023.06.27"]
[WhiteClock "0:00:02"]
[BlackClock "0:00:28"]
[Board "92"]

1. b3 {[%clk 0:03:00]}  e5 {[%clk 0:02:53]} 2. Bb2 {[%clk 0:02:59]}  d6 {[%clk 0:02:54]} 3. e3 {[%clk 0:02:53]}  f5 {[%clk 0:02:50]} 4. d4 {[%clk 0:02:52]}  Nc6 {[%clk 0:02:50]} 5. dxe5 {[%clk 0:02:38]}  dxe5 {[%clk 0:02:51]} 6. Qxd8+ {[%clk 0:02:36]}  Kxd8 {[%clk 0:02:52]} 7. Nd2 {[%clk 0:02:27]}  Bd6 {[%clk 0:02:50]} 8. O-O-O {[%clk 0:02:19]}  Nf6 {[%clk 0:02:50]} 9. Nc4 {[%clk 0:02:17]}  Ke7 {[%clk 0:02:50]} 10. Nf3 {[%clk 0:02:07]}  e4 {[%clk 0:02:50]} 11. Nxd6 {[%clk 0:02:00]}  cxd6 {[%clk 0:02:51]} 12. Nd4 {[%clk 0:01:50]}  Bd7 {[%clk 0:02:50]} 13. Ba3 {[%clk 0:01:43]}  Rhd8 {[%clk 0:02:48]} 14. Be2 {[%clk 0:01:34]}  Ne5 {[%clk 0:02:22]} 15. f4 {[%clk 0:01:14]}  exf3 {[%clk 0:02:21]} 16. gxf3 {[%clk 0:01:15]}  Rac8 {[%clk 0:02:19]} 17. Rd2 {[%clk 0:00:51]}  Nd5 {[%clk 0:02:16]} 18. e4 {[%clk 0:00:24]}  fxe4 {[%clk 0:02:10]} 19. fxe4 {[%clk 0:00:25]}  Nc3 {[%clk 0:02:10]} 20. Rg1 {[%clk 0:00:10]}  g6 {[%clk 0:02:09]} 21. Kb2 {[%clk 0:00:09]}  Nxe4 {[%clk 0:02:09]} 22. Rdd1 {[%clk 0:00:05]}  Nc3 {[%clk 0:02:08]} 23. Rde1 {[%clk 0:00:04]}  Bf5 {[%clk 0:01:43]} 24. Bd3 {[%clk 0:00:03]}  Bxd3 {[%clk 0:01:40]} 25. Rxe5+ {[%clk 0:00:03]}  Kf7 {[%clk 0:01:40]} 26. Re3 {[%clk 0:00:02]}  Bf5 {[%clk 0:01:39]} 27. Rxc3 {[%clk 0:00:02]}  Rxc3 {[%clk 0:01:39]} 28. Kxc3 {[%clk 0:00:03]}  d5 {[%clk 0:01:38]} 29. Nxf5 {[%clk 0:00:03]}  gxf5 {[%clk 0:01:39]} 30. Rd1 {[%clk 0:00:03]}  Rc8+ {[%clk 0:01:37]} 31. Kb2 {[%clk 0:00:03]}  Ke6 {[%clk 0:01:36]} 32. c3 {[%clk 0:00:03]}  f4 {[%clk 0:01:36]} 33. Re1+ {[%clk 0:00:03]}  Kf5 {[%clk 0:01:37]} 34. Bd6 {[%clk 0:00:03]}  Rc6 {[%clk 0:01:33]} 35. Re5+ {[%clk 0:00:03]}  Kg4 {[%clk 0:01:33]} 36. Rxd5 {[%clk 0:00:03]}  f3 {[%clk 0:01:34]} 37. Rd1 {[%clk 0:00:03]}  h5 {[%clk 0:01:30]} 38. Bg3 {[%clk 0:00:03]}  h4 {[%clk 0:01:30]} 39. Bf2 {[%clk 0:00:04]}  Kh3 {[%clk 0:01:28]} 40. Rd4 {[%clk 0:00:04]}  Kxh2 {[%clk 0:01:28]} 41. Bxh4 {[%clk 0:00:04]}  Kg2 {[%clk 0:01:29]} 42. Rg4+ {[%clk 0:00:04]}  Kh3 {[%clk 0:01:29]} 43. Rf4 {[%clk 0:00:05]}  Kg2 {[%clk 0:01:27]} 44. c4 {[%clk 0:00:05]}  Rh6 {[%clk 0:01:24]} 45. Be1 {[%clk 0:00:05]}  Rh1 {[%clk 0:01:24]} 46. Bc3 {[%clk 0:00:04]}  f2 {[%clk 0:01:23]} 47. Rxf2+ {[%clk 0:00:03]}  Kxf2 {[%clk 0:01:23]} 48. Bd4+ {[%clk 0:00:04]}  Ke2 {[%clk 0:01:24]} 49. Bxa7 {[%clk 0:00:05]}  Kd3 {[%clk 0:01:24]} 50. Ka3 {[%clk 0:00:04]}  Rh6 {[%clk 0:01:22]} 51. Bc5 {[%clk 0:00:02]}  Ra6+ {[%clk 0:01:22]} 52. Kb2 {[%clk 0:00:01]}  b6 {[%clk 0:01:22]} 53. Bb4 {[%clk 0:00:01]}  Ra8 {[%clk 0:01:19]} 54. c5 {[%clk 0:00:01]}  b5 {[%clk 0:01:14]} 55. a3 {[%clk 0:00:01]}  Kd4 {[%clk 0:01:14]} 56. a4 {[%clk 0:00:01]}  bxa4 {[%clk 0:01:13]} 57. bxa4 {[%clk 0:00:02]}  Rxa4 {[%clk 0:01:14]} 58. Kb3 {[%clk 0:00:03]}  Ra8 {[%clk 0:01:13]} 59. Ba3 {[%clk 0:00:03]}  Rb8+ {[%clk 0:01:13]} 60. Bb4 {[%clk 0:00:04]}  Rb5 {[%clk 0:01:05]} 61. Ka3 {[%clk 0:00:04]}  Kc4 {[%clk 0:01:01]} 62. c6 {[%clk 0:00:04]}  Rb6 {[%clk 0:00:47]} 63. c7 {[%clk 0:00:04]}  Rc6 {[%clk 0:00:43]} 64. Ba5 {[%clk 0:00:04]}  Kb5 {[%clk 0:00:43]} 65. Bd2 {[%clk 0:00:04]}  Rxc7 {[%clk 0:00:41]} 66. Kb3 {[%clk 0:00:04]}  Rh7 {[%clk 0:00:39]} 67. Kc2 {[%clk 0:00:04]}  Kc4 {[%clk 0:00:39]} 68. Bg5 {[%clk 0:00:03]}  Rh2+ {[%clk 0:00:37]} 69. Kd1 {[%clk 0:00:03]}  Rg2 {[%clk 0:00:38]} 70. Bf4 {[%clk 0:00:03]}  Rf2 {[%clk 0:00:35]} 71. Bg5 {[%clk 0:00:03]}  Rf5 {[%clk 0:00:36]} 72. Be3 {[%clk 0:00:02]}  Re5 {[%clk 0:00:36]} 73. Bh6 {[%clk 0:00:02]}  Kd3 {[%clk 0:00:35]} 74. Kc1 {[%clk 0:00:01]}  Re2 {[%clk 0:00:34]} 75. Bg5 {[%clk 0:00:01]}  Rg2 {[%clk 0:00:33]} 76. Bh6 {[%clk 0:00:01]}  Rc2+ {[%clk 0:00:29]} 77. Kd1 {[%clk 0:00:01]}  Rh2 {[%clk 0:00:28]} 78. Bg5 {[%clk 0:00:02]}  Rh1# {[%clk 0:00:28]} 0-1


[Site "https://www.chess.com"]

[Event "Titled Tuesday Blitz June 27 Late 2023"]
[White "Martinez Ramirez, Lennis"]
[Black "Bueno, Alfeu Junior Varela"]
[WhiteFideId "3509079"]
[BlackFideId "2108879"]
[WhiteElo "2611"]
[BlackElo "2394"]
[Result "1-0"]
[Round "7"]
[TimeControl "180+2"]
[Date "2023.06.27"]
[WhiteClock "0:00:21"]
[BlackClock "0:00:03"]
[Board "93"]

1. e4 {[%clk 0:02:55]}  e6 {[%clk 0:03:00]} 2. d4 {[%clk 0:02:55]}  d5 {[%clk 0:03:00]} 3. Nc3 {[%clk 0:02:56]}  Nf6 {[%clk 0:03:00]} 4. Bg5 {[%clk 0:02:55]}  Be7 {[%clk 0:03:01]} 5. e5 {[%clk 0:02:55]}  Nfd7 {[%clk 0:03:01]} 6. h4 {[%clk 0:02:55]}  O-O {[%clk 0:02:56]} 7. Bd3 {[%clk 0:02:51]}  c5 {[%clk 0:02:51]} 8. Qh5 {[%clk 0:02:50]}  g6 {[%clk 0:02:50]} 9. Qh6 {[%clk 0:02:50]}  Re8 {[%clk 0:02:45]} 10. Bxe7 {[%clk 0:02:30]}  Qxe7 {[%clk 0:02:44]} 11. Nf3 {[%clk 0:02:22]}  Nc6 {[%clk 0:02:36]} 12. Ng5 {[%clk 0:02:11]}  Nf8 {[%clk 0:02:28]} 13. h5 {[%clk 0:02:09]}  cxd4 {[%clk 0:01:48]} 14. Nxh7 {[%clk 0:02:07]}  Nxh7 {[%clk 0:01:14]} 15. hxg6 {[%clk 0:02:05]}  fxg6 {[%clk 0:01:03]} 16. Qxg6+ {[%clk 0:02:04]}  Qg7 {[%clk 0:00:55]} 17. Qxe8+ {[%clk 0:02:04]}  Nf8 {[%clk 0:00:54]} 18. Rh7 {[%clk 0:01:44]}  Qxe5+ {[%clk 0:00:23]} 19. Kf1 {[%clk 0:01:43]}  Qf6 {[%clk 0:00:17]} 20. Nb5 {[%clk 0:01:28]}  Rb8 {[%clk 0:00:13]} 21. Nd6 {[%clk 0:01:05]}  Bd7 {[%clk 0:00:11]} 22. Qh5 {[%clk 0:01:04]}  Nxh7 {[%clk 0:00:11]} 23. Qxh7+ {[%clk 0:01:05]}  Kf8 {[%clk 0:00:12]} 24. Qxd7 {[%clk 0:01:04]}  Rd8 {[%clk 0:00:10]} 25. Qc7 {[%clk 0:01:03]}  a6 {[%clk 0:00:09]} 26. Re1 {[%clk 0:01:01]}  Qe7 {[%clk 0:00:09]} 27. Qxe7+ {[%clk 0:01:00]}  Kxe7 {[%clk 0:00:09]} 28. Nxb7 {[%clk 0:01:00]}  Rb8 {[%clk 0:00:10]} 29. Nc5 {[%clk 0:01:00]}  Rxb2 {[%clk 0:00:11]} 30. Nxe6 {[%clk 0:01:00]}  Kd6 {[%clk 0:00:10]} 31. Nf4 {[%clk 0:00:55]}  Rxa2 {[%clk 0:00:10]} 32. g4 {[%clk 0:00:53]}  Ne5 {[%clk 0:00:10]} 33. g5 {[%clk 0:00:52]}  Nf3 {[%clk 0:00:09]} 34. Re6+ {[%clk 0:00:52]}  Kd7 {[%clk 0:00:09]} 35. g6 {[%clk 0:00:47]}  Ra1+ {[%clk 0:00:10]} 36. Kg2 {[%clk 0:00:47]}  Nh4+ {[%clk 0:00:10]} 37. Kh2 {[%clk 0:00:45]}  Nxg6 {[%clk 0:00:05]} 38. Rxg6 {[%clk 0:00:45]}  a5 {[%clk 0:00:04]} 39. Nxd5 {[%clk 0:00:45]}  a4 {[%clk 0:00:03]} 40. Bf5+ {[%clk 0:00:45]}  Ke8 {[%clk 0:00:03]} 41. Be6 {[%clk 0:00:45]}  Kd8 {[%clk 0:00:03]} 42. Rg8# {[%clk 0:00:21]} 1-0


[Site "https://www.chess.com"]

[Event "Titled Tuesday Blitz June 27 Late 2023"]
[White "Davidson, Kevin"]
[Black "Bruedigam, Martin"]
[WhiteFideId "2056810"]
[BlackFideId "24608033"]
[WhiteElo "2373"]
[BlackElo "2526"]
[Result "1-0"]
[Round "7"]
[TimeControl "180+2"]
[Date "2023.06.27"]
[WhiteClock "0:00:36"]
[BlackClock "0:01:38"]
[Board "94"]

1. e4 {[%clk 0:03:00]}  e6 {[%clk 0:02:57]} 2. d4 {[%clk 0:03:00]}  d5 {[%clk 0:02:58]} 3. Nc3 {[%clk 0:03:00]}  dxe4 {[%clk 0:02:57]} 4. Nxe4 {[%clk 0:03:00]}  Be7 {[%clk 0:02:58]} 5. Nf3 {[%clk 0:02:58]}  Nf6 {[%clk 0:02:58]} 6. Nxf6+ {[%clk 0:02:55]}  Bxf6 {[%clk 0:02:58]} 7. Be3 {[%clk 0:02:55]}  Nd7 {[%clk 0:02:58]} 8. Bd3 {[%clk 0:02:54]}  b6 {[%clk 0:02:58]} 9. Qe2 {[%clk 0:02:53]}  Bb7 {[%clk 0:02:58]} 10. O-O-O {[%clk 0:02:53]}  Qe7 {[%clk 0:02:56]} 11. Rhe1 {[%clk 0:02:42]}  O-O {[%clk 0:02:53]} 12. g4 {[%clk 0:02:33]}  Bxf3 {[%clk 0:02:50]} 13. Qxf3 {[%clk 0:02:33]}  g6 {[%clk 0:02:32]} 14. h4 {[%clk 0:02:27]}  Bxh4 {[%clk 0:02:30]} 15. Qh3 {[%clk 0:02:14]}  Bg5 {[%clk 0:02:29]} 16. f4 {[%clk 0:02:11]}  Bf6 {[%clk 0:02:09]} 17. Rh1 {[%clk 0:02:00]}  h5 {[%clk 0:02:08]} 18. gxh5 {[%clk 0:01:58]}  g5 {[%clk 0:02:09]} 19. Rdg1 {[%clk 0:01:23]}  Qd6 {[%clk 0:02:00]} 20. c3 {[%clk 0:00:57]}  Kh8 {[%clk 0:01:42]} 21. fxg5 {[%clk 0:00:51]}  Be5 {[%clk 0:01:42]} 22. g6 {[%clk 0:00:39]}  f5 {[%clk 0:01:38]} 23. dxe5 {[%clk 0:00:36]} 1-0


[Site "https://www.chess.com"]

[Event "Titled Tuesday Blitz June 27 Late 2023"]
[White "Peycheva, Gergana"]
[Black "Castella Garcia, Fausto"]
[WhiteFideId "2916711"]
[BlackFideId "3501922"]
[WhiteElo "2519"]
[BlackElo "2366"]
[Result "0-1"]
[Round "7"]
[TimeControl "180+2"]
[Date "2023.06.27"]
[WhiteClock "0:00:03"]
[BlackClock "0:00:23"]
[Board "95"]

1. d4 {[%clk 0:03:00]}  Nf6 {[%clk 0:02:57]} 2. c4 {[%clk 0:03:01]}  e5 {[%clk 0:02:56]} 3. dxe5 {[%clk 0:03:00]}  Ng4 {[%clk 0:02:56]} 4. Nh3 {[%clk 0:02:58]}  Nxe5 {[%clk 0:02:53]} 5. e3 {[%clk 0:02:47]}  d5 {[%clk 0:02:49]} 6. cxd5 {[%clk 0:02:41]}  Bxh3 {[%clk 0:02:48]} 7. gxh3 {[%clk 0:02:42]}  Bb4+ {[%clk 0:02:39]} 8. Nc3 {[%clk 0:02:39]}  O-O {[%clk 0:02:30]} 9. Bg2 {[%clk 0:02:38]}  f5 {[%clk 0:02:22]} 10. O-O {[%clk 0:02:36]}  Nbd7 {[%clk 0:02:15]} 11. Nb5 {[%clk 0:02:21]}  Bc5 {[%clk 0:01:43]} 12. Nd4 {[%clk 0:02:15]}  Bxd4 {[%clk 0:01:43]} 13. Qxd4 {[%clk 0:02:15]}  Rf6 {[%clk 0:01:40]} 14. Kh1 {[%clk 0:02:11]}  Rg6 {[%clk 0:01:38]} 15. b3 {[%clk 0:02:10]}  Qg5 {[%clk 0:01:32]} 16. Rg1 {[%clk 0:02:06]}  Nf3 {[%clk 0:01:28]} 17. Qf4 {[%clk 0:01:30]}  Qxf4 {[%clk 0:01:22]} 18. exf4 {[%clk 0:01:31]}  Nxg1 {[%clk 0:01:23]} 19. Kxg1 {[%clk 0:01:31]}  Nf6 {[%clk 0:01:17]} 20. Kf1 {[%clk 0:01:31]}  Rd8 {[%clk 0:01:09]} 21. Be3 {[%clk 0:01:25]}  Nxd5 {[%clk 0:01:07]} 22. Bxa7 {[%clk 0:01:24]}  b6 {[%clk 0:01:00]} 23. a4 {[%clk 0:01:21]}  Nxf4 {[%clk 0:00:56]} 24. Bf3 {[%clk 0:01:19]}  Rd3 {[%clk 0:00:54]} 25. Bb7 {[%clk 0:01:08]}  Rxb3 {[%clk 0:00:51]} 26. Bb8 {[%clk 0:00:56]}  Rc3 {[%clk 0:00:44]} 27. a5 {[%clk 0:00:36]}  bxa5 {[%clk 0:00:44]} 28. Ba7 {[%clk 0:00:36]}  Rd6 {[%clk 0:00:35]} 29. Be3 {[%clk 0:00:33]}  Nd5 {[%clk 0:00:32]} 30. Bd4 {[%clk 0:00:26]}  Rb3 {[%clk 0:00:30]} 31. Ba8 {[%clk 0:00:25]}  Nb6 {[%clk 0:00:27]} 32. Bxb6 {[%clk 0:00:20]}  cxb6 {[%clk 0:00:27]} 33. Rc1 {[%clk 0:00:19]}  h6 {[%clk 0:00:27]} 34. Rc7 {[%clk 0:00:11]}  a4 {[%clk 0:00:26]} 35. Ra7 {[%clk 0:00:11]}  a3 {[%clk 0:00:26]} 36. Kg2 {[%clk 0:00:09]}  Rd2 {[%clk 0:00:25]} 37. Kf1 {[%clk 0:00:07]}  a2 {[%clk 0:00:24]} 38. Ke1 {[%clk 0:00:03]}  Rbb2 {[%clk 0:00:23]} 0-1


[Site "https://www.chess.com"]

[Event "Titled Tuesday Blitz June 27 Late 2023"]
[White "Schuster, Karsten"]
[Black "Womacka, Mathias"]
[WhiteFideId "4611071"]
[BlackFideId "4611390"]
[WhiteElo "2362"]
[BlackElo "2498"]
[Result "0-1"]
[Round "7"]
[TimeControl "180+2"]
[Date "2023.06.27"]
[WhiteClock "0:00:13"]
[BlackClock "0:00:13"]
[Board "96"]

1. d4 {[%clk 0:03:00]}  Nf6 {[%clk 0:02:58]} 2. c3 {[%clk 0:02:59]}  e6 {[%clk 0:02:58]} 3. Nf3 {[%clk 0:02:59]}  c5 {[%clk 0:02:57]} 4. Bf4 {[%clk 0:02:54]}  d5 {[%clk 0:02:57]} 5. e3 {[%clk 0:02:53]}  Bd6 {[%clk 0:02:56]} 6. Bg3 {[%clk 0:02:53]}  O-O {[%clk 0:02:56]} 7. Be2 {[%clk 0:02:52]}  Qc7 {[%clk 0:02:55]} 8. Nbd2 {[%clk 0:02:51]}  Nbd7 {[%clk 0:02:55]} 9. O-O {[%clk 0:02:49]}  b6 {[%clk 0:02:55]} 10. Rc1 {[%clk 0:02:47]}  e5 {[%clk 0:02:52]} 11. dxe5 {[%clk 0:02:46]}  Nxe5 {[%clk 0:02:51]} 12. Nxe5 {[%clk 0:02:45]}  Bxe5 {[%clk 0:02:51]} 13. Nf3 {[%clk 0:02:45]}  Bxg3 {[%clk 0:02:50]} 14. hxg3 {[%clk 0:02:45]}  Bb7 {[%clk 0:02:47]} 15. Qb3 {[%clk 0:02:36]}  Rad8 {[%clk 0:02:42]} 16. Rfd1 {[%clk 0:02:36]}  Ne4 {[%clk 0:02:35]} 17. Nd2 {[%clk 0:02:33]}  Nf6 {[%clk 0:02:08]} 18. Bf3 {[%clk 0:02:31]}  Qe7 {[%clk 0:02:05]} 19. Nf1 {[%clk 0:02:26]}  Ne4 {[%clk 0:01:59]} 20. Qc2 {[%clk 0:02:19]}  Rfe8 {[%clk 0:01:53]} 21. Bxe4 {[%clk 0:02:14]}  dxe4 {[%clk 0:01:52]} 22. Rxd8 {[%clk 0:02:12]}  Rxd8 {[%clk 0:01:52]} 23. Rd1 {[%clk 0:02:12]}  h5 {[%clk 0:01:38]} 24. Rxd8+ {[%clk 0:02:11]}  Qxd8 {[%clk 0:01:39]} 25. Qd2 {[%clk 0:02:11]}  Qxd2 {[%clk 0:01:37]} 26. Nxd2 {[%clk 0:02:11]}  Kf8 {[%clk 0:01:35]} 27. Kf1 {[%clk 0:02:03]}  Ke7 {[%clk 0:01:35]} 28. Ke2 {[%clk 0:02:04]}  Ke6 {[%clk 0:01:34]} 29. c4 {[%clk 0:01:52]}  Ke5 {[%clk 0:01:30]} 30. b3 {[%clk 0:01:45]}  Bc8 {[%clk 0:01:29]} 31. Nb1 {[%clk 0:01:41]}  Be6 {[%clk 0:01:24]} 32. Nc3 {[%clk 0:01:40]}  g5 {[%clk 0:01:17]} 33. Nb5 {[%clk 0:01:32]}  a5 {[%clk 0:01:06]} 34. Nc3 {[%clk 0:00:58]}  Bd7 {[%clk 0:01:05]} 35. Na4 {[%clk 0:00:50]}  Bxa4 {[%clk 0:01:04]} 36. bxa4 {[%clk 0:00:50]}  f5 {[%clk 0:01:00]} 37. Kd2 {[%clk 0:00:47]}  h4 {[%clk 0:00:53]} 38. gxh4 {[%clk 0:00:45]}  gxh4 {[%clk 0:00:54]} 39. Ke2 {[%clk 0:00:44]}  f4 {[%clk 0:00:49]} 40. Kf1 {[%clk 0:00:43]}  Kf5 {[%clk 0:00:47]} 41. exf4 {[%clk 0:00:32]}  Kxf4 {[%clk 0:00:47]} 42. Kg1 {[%clk 0:00:32]}  e3 {[%clk 0:00:14]} 43. fxe3+ {[%clk 0:00:32]}  Kxe3 {[%clk 0:00:14]} 44. Kh2 {[%clk 0:00:33]}  Kf2 {[%clk 0:00:13]} 45. Kh3 {[%clk 0:00:33]}  Kg1 {[%clk 0:00:12]} 46. g4 {[%clk 0:00:21]}  hxg3 {[%clk 0:00:13]} 47. Kxg3 {[%clk 0:00:21]}  Kf1 {[%clk 0:00:13]} 48. Kf3 {[%clk 0:00:21]}  Ke1 {[%clk 0:00:14]} 49. Ke4 {[%clk 0:00:19]}  Kd2 {[%clk 0:00:14]} 50. Kd5 {[%clk 0:00:18]}  Kc3 {[%clk 0:00:13]} 51. Kc6 {[%clk 0:00:19]}  Kxc4 {[%clk 0:00:13]} 52. Kxb6 {[%clk 0:00:13]}  Kb4 {[%clk 0:00:13]} 0-1


[Site "https://www.chess.com"]

[Event "Titled Tuesday Blitz June 27 Late 2023"]
[White "Bazzano, Sebastian"]
[Black "Pinto, Daniel"]
[WhiteFideId "104566"]
[BlackFideId "3303144"]
[WhiteElo "2234"]
[BlackElo "2417"]
[Result "0-1"]
[Round "7"]
[TimeControl "180+2"]
[Date "2023.06.27"]
[WhiteClock "0:00:00"]
[BlackClock "0:00:10"]
[Board "103"]

1. d4 {[%clk 0:03:00]}  Nf6 {[%clk 0:02:57]} 2. Bf4 {[%clk 0:02:57]}  c5 {[%clk 0:02:57]} 3. dxc5 {[%clk 0:02:56]}  Na6 {[%clk 0:02:55]} 4. Qd4 {[%clk 0:02:54]}  Qa5+ {[%clk 0:02:51]} 5. c3 {[%clk 0:02:53]}  Qxc5 {[%clk 0:02:51]} 6. Qxc5 {[%clk 0:02:54]}  Nxc5 {[%clk 0:02:51]} 7. Nd2 {[%clk 0:02:54]}  d6 {[%clk 0:02:51]} 8. Ngf3 {[%clk 0:02:49]}  e5 {[%clk 0:02:51]} 9. Bg3 {[%clk 0:02:44]}  Bd7 {[%clk 0:02:42]} 10. e3 {[%clk 0:02:38]}  Be7 {[%clk 0:02:19]} 11. O-O-O {[%clk 0:02:20]}  Rc8 {[%clk 0:02:10]} 12. Nb3 {[%clk 0:02:13]}  Ba4 {[%clk 0:01:48]} 13. Kc2 {[%clk 0:01:38]}  Nfe4 {[%clk 0:01:44]} 14. Nd2 {[%clk 0:01:25]}  h5 {[%clk 0:00:58]} 15. Nxe4 {[%clk 0:01:06]}  Nxe4 {[%clk 0:00:57]} 16. f3 {[%clk 0:01:04]}  h4 {[%clk 0:00:52]} 17. Be1 {[%clk 0:00:57]}  Nf6 {[%clk 0:00:45]} 18. e4 {[%clk 0:00:46]}  Nh5 {[%clk 0:00:35]} 19. Bf2 {[%clk 0:00:44]}  a6 {[%clk 0:00:31]} 20. g3 {[%clk 0:00:25]}  Bd7 {[%clk 0:00:20]} 21. Na5 {[%clk 0:00:14]}  b5 {[%clk 0:00:19]} 22. Nb7 {[%clk 0:00:12]}  Rc6 {[%clk 0:00:19]} 23. Na5 {[%clk 0:00:11]}  Rc8 {[%clk 0:00:18]} 24. Nb7 {[%clk 0:00:11]}  Rc6 {[%clk 0:00:18]} 25. Na5 {[%clk 0:00:11]}  Rc7 {[%clk 0:00:16]} 26. Bb6 {[%clk 0:00:10]}  Rc8 {[%clk 0:00:17]} 27. Bf2 {[%clk 0:00:08]}  f5 {[%clk 0:00:13]} 28. Nb7 {[%clk 0:00:06]}  Rh6 {[%clk 0:00:13]} 29. exf5 {[%clk 0:00:00]}  Bc6 {[%clk 0:00:10]} 0-1


[Site "https://www.chess.com"]

[Event "Titled Tuesday Blitz June 27 Late 2023"]
[White "Arnold, Ken"]
[Black "Petersson, Kjell"]
[WhiteFideId "2056836"]
[BlackFideId "1705148"]
[WhiteElo "2399"]
[BlackElo "2168"]
[Result "1-0"]
[Round "7"]
[TimeControl "180+2"]
[Date "2023.06.27"]
[WhiteClock "0:00:04"]
[BlackClock "0:00:05"]
[Board "104"]

1. d4 {[%clk 0:03:00]}  f5 {[%clk 0:02:59]} 2. c4 {[%clk 0:02:59]}  Nf6 {[%clk 0:02:59]} 3. Nc3 {[%clk 0:02:59]}  e6 {[%clk 0:03:00]} 4. Bg5 {[%clk 0:02:59]}  Bb4 {[%clk 0:03:00]} 5. Qb3 {[%clk 0:02:56]}  a5 {[%clk 0:02:53]} 6. e3 {[%clk 0:02:51]}  O-O {[%clk 0:02:49]} 7. Nf3 {[%clk 0:02:50]}  h6 {[%clk 0:02:28]} 8. Bxf6 {[%clk 0:02:49]}  Qxf6 {[%clk 0:02:28]} 9. a3 {[%clk 0:02:49]}  a4 {[%clk 0:02:18]} 10. Qc2 {[%clk 0:02:44]}  Bxc3+ {[%clk 0:02:15]} 11. Qxc3 {[%clk 0:02:43]}  Nc6 {[%clk 0:02:12]} 12. Be2 {[%clk 0:02:38]}  Na5 {[%clk 0:02:12]} 13. Nd2 {[%clk 0:02:31]}  b6 {[%clk 0:02:10]} 14. Bf3 {[%clk 0:02:30]}  Rb8 {[%clk 0:02:08]} 15. Qc2 {[%clk 0:02:28]}  f4 {[%clk 0:02:00]} 16. O-O {[%clk 0:02:27]}  Bb7 {[%clk 0:01:46]} 17. Bxb7 {[%clk 0:02:25]}  Nxb7 {[%clk 0:01:34]} 18. Qxa4 {[%clk 0:02:21]}  fxe3 {[%clk 0:01:28]} 19. fxe3 {[%clk 0:02:18]}  Qg5 {[%clk 0:01:28]} 20. Qb3 {[%clk 0:02:11]}  Nd6 {[%clk 0:01:24]} 21. Rxf8+ {[%clk 0:02:05]}  Rxf8 {[%clk 0:01:23]} 22. Rf1 {[%clk 0:02:05]}  Rxf1+ {[%clk 0:01:16]} 23. Nxf1 {[%clk 0:02:04]}  Nf5 {[%clk 0:01:15]} 24. Qd3 {[%clk 0:01:57]}  c6 {[%clk 0:01:06]} 25. Qe4 {[%clk 0:01:52]}  Qh5 {[%clk 0:00:59]} 26. g4 {[%clk 0:01:46]}  Qg5 {[%clk 0:00:57]} 27. h3 {[%clk 0:01:44]}  Nd6 {[%clk 0:00:51]} 28. Qd3 {[%clk 0:01:37]}  Qh4 {[%clk 0:00:49]} 29. Kg2 {[%clk 0:01:36]}  Qe1 {[%clk 0:00:48]} 30. c5 {[%clk 0:01:28]}  Nc8 {[%clk 0:00:44]} 31. b4 {[%clk 0:01:25]}  b5 {[%clk 0:00:43]} 32. Ng3 {[%clk 0:01:24]}  Qc1 {[%clk 0:00:40]} 33. e4 {[%clk 0:01:23]}  Qb2+ {[%clk 0:00:40]} 34. Kf3 {[%clk 0:01:20]}  Ne7 {[%clk 0:00:39]} 35. Ne2 {[%clk 0:00:59]}  Ng6 {[%clk 0:00:38]} 36. Kg3 {[%clk 0:00:57]}  Qa1 {[%clk 0:00:36]} 37. e5 {[%clk 0:00:50]}  Qe1+ {[%clk 0:00:36]} 38. Kf3 {[%clk 0:00:23]}  Nh4+ {[%clk 0:00:36]} 39. Ke4 {[%clk 0:00:23]}  Qh1+ {[%clk 0:00:32]} 40. Ke3 {[%clk 0:00:21]}  Qxh3+ {[%clk 0:00:32]} 41. Kd2 {[%clk 0:00:20]}  Qxg4 {[%clk 0:00:32]} 42. a4 {[%clk 0:00:16]}  Nf3+ {[%clk 0:00:32]} 43. Kc3 {[%clk 0:00:14]}  bxa4 {[%clk 0:00:30]} 44. b5 {[%clk 0:00:13]}  cxb5 {[%clk 0:00:30]} 45. Qxb5 {[%clk 0:00:13]}  Ne1 {[%clk 0:00:28]} 46. Kd2 {[%clk 0:00:10]}  Nf3+ {[%clk 0:00:27]} 47. Kc3 {[%clk 0:00:10]}  Ng5 {[%clk 0:00:24]} 48. Kb4 {[%clk 0:00:08]}  Ne4 {[%clk 0:00:20]} 49. Ka5 {[%clk 0:00:05]}  Qf3 {[%clk 0:00:18]} 50. Kb6 {[%clk 0:00:05]}  a3 {[%clk 0:00:17]} 51. Qxd7 {[%clk 0:00:03]}  Qxe2 {[%clk 0:00:15]} 52. Qxe6+ {[%clk 0:00:03]}  Kh7 {[%clk 0:00:15]} 53. Qf5+ {[%clk 0:00:03]}  Kg8 {[%clk 0:00:14]} 54. Qe6+ {[%clk 0:00:03]}  Kf8 {[%clk 0:00:14]} 55. Qd6+ {[%clk 0:00:03]}  Ke8 {[%clk 0:00:14]} 56. Qe6+ {[%clk 0:00:04]}  Kd8 {[%clk 0:00:14]} 57. Qg8+ {[%clk 0:00:04]}  Ke7 {[%clk 0:00:14]} 58. Qxg7+ {[%clk 0:00:04]}  Ke6 {[%clk 0:00:14]} 59. Qxh6+ {[%clk 0:00:04]}  Kd5 {[%clk 0:00:14]} 60. Qc6+ {[%clk 0:00:04]}  Kc4 {[%clk 0:00:15]} 61. Qb5+ {[%clk 0:00:03]}  Kxd4 {[%clk 0:00:15]} 62. Qxe2 {[%clk 0:00:03]}  Kxe5 {[%clk 0:00:15]} 63. Qa2 {[%clk 0:00:03]}  Nc3 {[%clk 0:00:12]} 64. Qxa3 {[%clk 0:00:02]}  Nd5+ {[%clk 0:00:12]} 65. Kc6 {[%clk 0:00:02]}  Ne7+ {[%clk 0:00:12]} 66. Kd7 {[%clk 0:00:02]}  Nd5 {[%clk 0:00:11]} 67. Qa5 {[%clk 0:00:03]}  Kd4 {[%clk 0:00:10]} 68. c6 {[%clk 0:00:03]}  Nf6+ {[%clk 0:00:08]} 69. Ke7 {[%clk 0:00:02]}  Nd5+ {[%clk 0:00:08]} 70. Qxd5+ {[%clk 0:00:03]}  Kxd5 {[%clk 0:00:05]} 71. c7 {[%clk 0:00:04]} 1-0


[Site "https://www.chess.com"]

[Event "Titled Tuesday Blitz June 27 Late 2023"]
[White "Wendt, Jan-Dietrich"]
[Black "Weishaeutel, Moritz"]
[WhiteFideId "4623797"]
[BlackFideId "12967300"]
[WhiteElo "2358"]
[BlackElo "2617"]
[Result "0-1"]
[Round "7"]
[TimeControl "180+2"]
[Date "2023.06.27"]
[WhiteClock "0:00:13"]
[BlackClock "0:01:16"]
[Board "105"]

1. c4 {[%clk 0:03:00]}  Nf6 {[%clk 0:02:57]} 2. Nc3 {[%clk 0:02:59]}  e6 {[%clk 0:02:47]} 3. Nf3 {[%clk 0:02:54]}  d5 {[%clk 0:02:47]} 4. e3 {[%clk 0:02:54]}  c5 {[%clk 0:02:47]} 5. d4 {[%clk 0:02:51]}  Nc6 {[%clk 0:02:44]} 6. cxd5 {[%clk 0:02:50]}  exd5 {[%clk 0:02:44]} 7. Be2 {[%clk 0:02:51]}  cxd4 {[%clk 0:02:44]} 8. Nxd4 {[%clk 0:02:50]}  Bd6 {[%clk 0:02:44]} 9. O-O {[%clk 0:02:50]}  O-O {[%clk 0:02:45]} 10. b3 {[%clk 0:02:48]}  Re8 {[%clk 0:02:30]} 11. Nxc6 {[%clk 0:02:44]}  bxc6 {[%clk 0:02:29]} 12. Bb2 {[%clk 0:02:43]}  Bc7 {[%clk 0:02:25]} 13. Rc1 {[%clk 0:02:35]}  Qd6 {[%clk 0:02:25]} 14. g3 {[%clk 0:02:35]}  Bh3 {[%clk 0:02:25]} 15. Re1 {[%clk 0:02:33]}  Rad8 {[%clk 0:02:16]} 16. Na4 {[%clk 0:02:08]}  Ne4 {[%clk 0:02:16]} 17. Bd4 {[%clk 0:02:07]}  Qg6 {[%clk 0:02:09]} 18. Bd3 {[%clk 0:01:37]}  Bf5 {[%clk 0:01:57]} 19. Nc5 {[%clk 0:01:25]}  Bxg3 {[%clk 0:01:18]} 20. hxg3 {[%clk 0:00:46]}  Nxg3 {[%clk 0:01:19]} 21. fxg3 {[%clk 0:00:32]}  Qxg3+ {[%clk 0:01:17]} 22. Kh1 {[%clk 0:00:20]}  Bg4 {[%clk 0:01:16]} 23. Rg1 {[%clk 0:00:13]}  Qh3# {[%clk 0:01:16]} 0-1


[Site "https://www.chess.com"]